[Event "*** SCC Grand Prix: Titled Tuesday Blitz"]
[Site "Chess.com"]
[Date "2020.09.29"]
[Round "2"]
[White "EvgenyRomanov"]
[Black "dominikaf"]
[Result "1-0"]
[WhiteElo "2583"]
[BlackElo "2319"]
[TimeControl "180+1"]
[EndTime "10:17:08 PDT"]
[Termination "EvgenyRomanov won on time"]

1. d4 {[%clk 0:03:00.9]} 1... Nf6 {[%clk 0:02:57.8]} 2. c4 {[%clk 0:02:58.9]}
2... g6 {[%clk 0:02:58.1]} 3. Nc3 {[%clk 0:02:57.6]} 3... Bg7 {[%clk 0:02:57.4]}
4. e4 {[%clk 0:02:58]} 4... d6 {[%clk 0:02:57.6]} 5. h3 {[%clk 0:02:58.3]} 5...
O-O {[%clk 0:02:48.4]} 6. Bg5 {[%clk 0:02:58.5]} 6... e5 {[%clk 0:02:34.8]} 7.
d5 {[%clk 0:02:56.7]} 7... Nbd7 {[%clk 0:02:33.8]} 8. Bd3 {[%clk 0:02:55.7]}
8... h6 {[%clk 0:02:33.1]} 9. Be3 {[%clk 0:02:54.6]} 9... Nc5 {[%clk 0:02:32]}
10. Bc2 {[%clk 0:02:53.7]} 10... a5 {[%clk 0:02:31.2]} 11. Qd2 {[%clk
0:02:52.1]} 11... Kh7 {[%clk 0:02:30.8]} 12. g4 {[%clk 0:02:51.4]} 12... Ne8
{[%clk 0:02:26.7]} 13. Nge2 {[%clk 0:02:50.1]} 13... f5 {[%clk 0:02:11.1]} 14.
exf5 {[%clk 0:02:48.3]} 14... gxf5 {[%clk 0:02:12]} 15. Ng3 {[%clk 0:02:44.5]}
15... e4 {[%clk 0:01:51.2]} 16. Nxf5 {[%clk 0:02:39]} 16... Rxf5 {[%clk
0:01:36.4]} 17. gxf5 {[%clk 0:02:39.9]} 17... Bxf5 {[%clk 0:01:36.9]} 18. Bxc5
{[%clk 0:02:27.9]} 18... dxc5 {[%clk 0:01:33.6]} 19. Bxe4 {[%clk 0:02:23]} 19...
Qe7 {[%clk 0:01:24.5]} 20. f3 {[%clk 0:01:22.3]} 20... Qh4+ {[%clk 0:01:14]} 21.
Qf2 {[%clk 0:01:18.8]} 21... Qf4 {[%clk 0:00:33.2]} 22. Ne2 {[%clk 0:00:58.8]}
22... Qe5 {[%clk 0:00:23.1]} 23. Qg3 {[%clk 0:00:55.2]} 23... Qf6 {[%clk
0:00:18.5]} 24. Rg1 {[%clk 0:00:42.4]} 24... Nd6 {[%clk 0:00:16.8]} 25. Nc3
{[%clk 0:00:36.5]} 25... Re8 {[%clk 0:00:15.9]} 26. O-O-O {[%clk 0:00:28.9]}
26... a4 {[%clk 0:00:16.2]} 27. a3 {[%clk 0:00:24.3]} 27... Re7 {[%clk
0:00:13.2]} 28. Rde1 {[%clk 0:00:22.6]} 28... b6 {[%clk 0:00:07.1]} 29. Bxf5+
{[%clk 0:00:20.9]} 29... Nxf5 {[%clk 0:00:07.2]} 30. Qf4 {[%clk 0:00:18.5]}
30... Rxe1+ {[%clk 0:00:05.9]} 31. Rxe1 {[%clk 0:00:19.4]} 31... h5 {[%clk
0:00:05.9]} 32. Re6 {[%clk 0:00:18.7]} 32... Qf7 {[%clk 0:00:02.2]} 33. Ne4
{[%clk 0:00:17.8]} 33... Bh6 {[%clk 0:00:02.1]} 34. Rxh6+ {[%clk 0:00:15.9]}
34... Nxh6 {[%clk 0:00:01.4]} 35. Ng5+ {[%clk 0:00:15.8]} 1-0

[Event "*** SCC Grand Prix: Titled Tuesday Blitz"]
[Site "Chess.com"]
[Date "2020.09.29"]
[Round "2"]
[White "DishonorOnYourCow"]
[Black "lacafi"]
[Result "1-0"]
[WhiteElo "2392"]
[BlackElo "2098"]
[TimeControl "180+1"]
[EndTime "10:17:08 PDT"]
[Termination "DishonorOnYourCow won on time"]

1. d4 {[%clk 0:03:00.9]} 1... f5 {[%clk 0:02:58.9]} 2. c4 {[%clk 0:03:00.7]}
2... Nf6 {[%clk 0:02:59.3]} 3. g3 {[%clk 0:03:01.2]} 3... g6 {[%clk 0:02:59.8]}
4. Nh3 {[%clk 0:03:00.5]} 4... Bg7 {[%clk 0:03:00.5]} 5. Bg2 {[%clk 0:03:00.8]}
5... O-O {[%clk 0:03:01]} 6. Nf4 {[%clk 0:03:00.8]} 6... d6 {[%clk 0:02:57.3]}
7. d5 {[%clk 0:02:56.9]} 7... c5 {[%clk 0:02:43.6]} 8. O-O {[%clk 0:02:55.3]}
8... Na6 {[%clk 0:02:42.5]} 9. Nc3 {[%clk 0:02:53.1]} 9... Nc7 {[%clk
0:02:42.7]} 10. Qc2 {[%clk 0:02:51]} 10... e5 {[%clk 0:02:35.7]} 11. dxe6 {[%clk
0:02:49.7]} 11... Nxe6 {[%clk 0:02:35.8]} 12. Ncd5 {[%clk 0:02:28]} 12... Nd4
{[%clk 0:02:31.7]} 13. Qd1 {[%clk 0:02:27.6]} 13... Kh8 {[%clk 0:02:04.1]} 14.
e3 {[%clk 0:02:24.2]} 14... Nc6 {[%clk 0:02:04]} 15. Rb1 {[%clk 0:02:20]} 15...
g5 {[%clk 0:01:48.7]} 16. Nh5 {[%clk 0:02:16.1]} 16... Nxh5 {[%clk 0:01:45.6]}
17. Qxh5 {[%clk 0:02:17]} 17... Ne5 {[%clk 0:01:37]} 18. Qe2 {[%clk 0:02:10.2]}
18... Rb8 {[%clk 0:01:27.2]} 19. b3 {[%clk 0:02:09.6]} 19... b5 {[%clk
0:01:25.7]} 20. cxb5 {[%clk 0:02:00.6]} 20... Qd7 {[%clk 0:00:55.6]} 21. a4
{[%clk 0:01:50.9]} 21... Bb7 {[%clk 0:00:55.8]} 22. Bb2 {[%clk 0:01:49.1]} 22...
Qf7 {[%clk 0:00:52.8]} 23. Rbd1 {[%clk 0:01:41.5]} 23... Rbe8 {[%clk 0:00:46.9]}
24. Qc2 {[%clk 0:01:34.3]} 24... g4 {[%clk 0:00:44.1]} 25. Bxe5 {[%clk
0:01:04.1]} 25... Bxe5 {[%clk 0:00:40.7]} 26. Rfe1 {[%clk 0:01:04.5]} 26... h5
{[%clk 0:00:38.2]} 27. Nf4 {[%clk 0:00:54.4]} 27... Bxg2 {[%clk 0:00:32.9]} 28.
Nxg2 {[%clk 0:00:47.3]} 28... Qf6 {[%clk 0:00:30.5]} 29. Qc4 {[%clk 0:00:37.2]}
29... Kg7 {[%clk 0:00:28.6]} 30. Nf4 {[%clk 0:00:33.7]} 30... Rh8 {[%clk
0:00:22.6]} 31. Ng2 {[%clk 0:00:25.8]} 31... h4 {[%clk 0:00:13.8]} 32. Qd5
{[%clk 0:00:21.9]} 32... hxg3 {[%clk 0:00:12.6]} 33. hxg3 {[%clk 0:00:20.3]}
33... Qh6 {[%clk 0:00:11.9]} 34. Nh4 {[%clk 0:00:20.2]} 34... Qg5 {[%clk
0:00:11.5]} 35. Qg2 {[%clk 0:00:20.1]} 35... Rh6 {[%clk 0:00:09.8]} 36. Rd5
{[%clk 0:00:19.7]} 36... Reh8 {[%clk 0:00:09.9]} 37. Red1 {[%clk 0:00:19.5]}
37... Rxh4 {[%clk 0:00:09.1]} 38. gxh4 {[%clk 0:00:19.9]} 38... Rxh4 {[%clk
0:00:08.8]} 39. Rxe5 {[%clk 0:00:18.6]} 39... dxe5 {[%clk 0:00:08.8]} 40. Rd7+
{[%clk 0:00:19]} 40... Kh6 {[%clk 0:00:08]} 41. Qc6+ {[%clk 0:00:18.9]} 1-0

[Event "*** SCC Grand Prix: Titled Tuesday Blitz"]
[Site "Chess.com"]
[Date "2020.09.29"]
[Round "2"]
[White "superchess02"]
[Black "profofchess"]
[Result "0-1"]
[WhiteElo "2789"]
[BlackElo "2366"]
[TimeControl "180+1"]
[EndTime "10:17:10 PDT"]
[Termination "profofchess won by checkmate"]

1. d4 {[%clk 0:03:00.9]} 1... Nf6 {[%clk 0:02:57.9]} 2. c4 {[%clk 0:03:01.7]}
2... e6 {[%clk 0:02:57.8]} 3. Nc3 {[%clk 0:03:01.2]} 3... Bb4 {[%clk 0:02:57.9]}
4. e3 {[%clk 0:03:02.1]} 4... O-O {[%clk 0:02:57.2]} 5. Bd3 {[%clk 0:03:02.8]}
5... c5 {[%clk 0:02:55.9]} 6. Nf3 {[%clk 0:03:03.4]} 6... b6 {[%clk 0:02:53.9]}
7. O-O {[%clk 0:03:03.6]} 7... Bxc3 {[%clk 0:02:53.8]} 8. bxc3 {[%clk
0:03:03.1]} 8... Bb7 {[%clk 0:02:54.7]} 9. Nd2 {[%clk 0:03:00.5]} 9... Nc6
{[%clk 0:02:51.7]} 10. a4 {[%clk 0:02:57.2]} 10... d6 {[%clk 0:02:47]} 11. f4
{[%clk 0:02:55.2]} 11... Rc8 {[%clk 0:02:34]} 12. Bb2 {[%clk 0:02:48.7]} 12...
d5 {[%clk 0:01:41.9]} 13. cxd5 {[%clk 0:02:10.1]} 13... exd5 {[%clk 0:01:41.5]}
14. dxc5 {[%clk 0:01:57.7]} 14... Re8 {[%clk 0:01:32]} 15. Re1 {[%clk
0:01:23.6]} 15... bxc5 {[%clk 0:01:27.4]} 16. Rb1 {[%clk 0:01:23.9]} 16... c4
{[%clk 0:00:48.4]} 17. Bc2 {[%clk 0:01:23.4]} 17... Rc7 {[%clk 0:00:48.4]} 18.
e4 {[%clk 0:01:15.4]} 18... dxe4 {[%clk 0:00:36.5]} 19. Nxe4 {[%clk 0:01:15.1]}
19... Nxe4 {[%clk 0:00:29.1]} 20. Rxe4 {[%clk 0:01:12.9]} 20... Rd7 {[%clk
0:00:18.8]} 21. Rxe8+ {[%clk 0:01:04]} 21... Qxe8 {[%clk 0:00:18.2]} 22. Qe1
{[%clk 0:01:04.9]} 22... Re7 {[%clk 0:00:12.9]} 23. Qh4 {[%clk 0:01:05]} 23...
h6 {[%clk 0:00:09.5]} 24. Rd1 {[%clk 0:00:50.2]} 24... Re2 {[%clk 0:00:08.6]}
25. Rc1 {[%clk 0:00:40.7]} 25... Nb4 {[%clk 0:00:08.4]} 26. Qg3 {[%clk
0:00:26.3]} 26... Nxc2 {[%clk 0:00:07.7]} 27. h3 {[%clk 0:00:26]} 27... Ne1
{[%clk 0:00:07.4]} 28. Rxe1 {[%clk 0:00:23.2]} 28... Rxe1+ {[%clk 0:00:07.5]}
29. Kh2 {[%clk 0:00:24.1]} 29... Re2 {[%clk 0:00:07.8]} 30. Ba3 {[%clk 0:00:25]}
30... Rxg2+ {[%clk 0:00:07.9]} 31. Qxg2 {[%clk 0:00:25.9]} 31... Bxg2 {[%clk
0:00:08.1]} 32. Kxg2 {[%clk 0:00:26.8]} 32... Qe2+ {[%clk 0:00:08.1]} 33. Kg3
{[%clk 0:00:27.7]} 33... Qd3+ {[%clk 0:00:08.6]} 34. Kf2 {[%clk 0:00:28.3]}
34... Qxc3 {[%clk 0:00:08.8]} 35. Bd6 {[%clk 0:00:28.9]} 35... Qd3 {[%clk
0:00:08.8]} 36. Be5 {[%clk 0:00:29.8]} 36... c3 {[%clk 0:00:09.1]} 37. f5 {[%clk
0:00:28.8]} 37... c2 {[%clk 0:00:08.8]} 38. Bb2 {[%clk 0:00:29.7]} 38... Qd1
{[%clk 0:00:08.8]} 39. Bc1 {[%clk 0:00:30.6]} 39... Qxc1 {[%clk 0:00:09]} 40.
Kf3 {[%clk 0:00:31.5]} 40... Qd1+ {[%clk 0:00:09.3]} 41. Ke4 {[%clk 0:00:32.4]}
41... c1=Q {[%clk 0:00:09.7]} 42. f6 {[%clk 0:00:33.3]} 42... Qe2+ {[%clk
0:00:09.6]} 43. Kd5 {[%clk 0:00:33.6]} 43... gxf6 {[%clk 0:00:09.9]} 44. Kd6
{[%clk 0:00:34.2]} 44... Qe4 {[%clk 0:00:09.4]} 45. a5 {[%clk 0:00:35.1]} 45...
Qcc6# {[%clk 0:00:09.1]} 0-1

[Event "*** SCC Grand Prix: Titled Tuesday Blitz"]
[Site "Chess.com"]
[Date "2020.09.29"]
[Round "2"]
[White "Korchmar_Vasiliy"]
[Black "Salem-AR"]
[Result "0-1"]
[WhiteElo "2575"]
[BlackElo "2922"]
[TimeControl "180+1"]
[EndTime "10:17:11 PDT"]
[Termination "Salem-AR won on time"]

1. d4 {[%clk 0:03:00.9]} 1... Nf6 {[%clk 0:02:56]} 2. Nf3 {[%clk 0:03:00.9]}
2... g6 {[%clk 0:02:56.1]} 3. Bg5 {[%clk 0:03:00.8]} 3... Bg7 {[%clk 0:02:56]}
4. Nbd2 {[%clk 0:03:01.1]} 4... d5 {[%clk 0:02:56.7]} 5. e3 {[%clk 0:03:01.4]}
5... O-O {[%clk 0:02:57.4]} 6. Be2 {[%clk 0:03:01.3]} 6... c5 {[%clk 0:02:56.8]}
7. c3 {[%clk 0:03:01.7]} 7... Nc6 {[%clk 0:02:56.2]} 8. dxc5 {[%clk 0:03:01.3]}
8... a5 {[%clk 0:02:33.2]} 9. a4 {[%clk 0:03:00.6]} 9... Qc7 {[%clk 0:02:30.6]}
10. O-O {[%clk 0:02:54.4]} 10... e5 {[%clk 0:02:27.5]} 11. Bxf6 {[%clk 0:02:32]}
11... Bxf6 {[%clk 0:02:28.4]} 12. e4 {[%clk 0:02:32.7]} 12... dxe4 {[%clk
0:02:28.2]} 13. Nxe4 {[%clk 0:02:33.6]} 13... Be7 {[%clk 0:02:28.9]} 14. Bc4
{[%clk 0:02:23.8]} 14... Kg7 {[%clk 0:02:19.6]} 15. Nd6 {[%clk 0:02:13.8]} 15...
Rd8 {[%clk 0:02:09.5]} 16. Qb3 {[%clk 0:01:23.1]} 16... Bxd6 {[%clk 0:02:00.9]}
17. cxd6 {[%clk 0:01:24]} 17... Rxd6 {[%clk 0:02:01.6]} 18. Ng5 {[%clk
0:01:08.5]} 18... h6 {[%clk 0:01:51]} 19. Nxf7 {[%clk 0:00:59]} 19... Rf6 {[%clk
0:01:51.1]} 20. Rad1 {[%clk 0:00:37.8]} 20... Rxf7 {[%clk 0:01:49.9]} 21. Bxf7
{[%clk 0:00:37.4]} 21... Qxf7 {[%clk 0:01:50.8]} 22. Qb6 {[%clk 0:00:37.1]}
22... Qe7 {[%clk 0:01:37.7]} 23. Rd2 {[%clk 0:00:30.8]} 23... Be6 {[%clk
0:01:25.4]} 24. Rfd1 {[%clk 0:00:30.1]} 24... Rf8 {[%clk 0:01:26.2]} 25. Rd6
{[%clk 0:00:28.4]} 25... Rf7 {[%clk 0:01:24.2]} 26. Qe3 {[%clk 0:00:22.4]} 26...
Bb3 {[%clk 0:01:22.1]} 27. R1d2 {[%clk 0:00:17.7]} 27... Qh4 {[%clk 0:01:15.5]}
28. Rd7 {[%clk 0:00:05.6]} 28... Qxa4 {[%clk 0:01:12]} 29. Rxf7+ {[%clk
0:00:04.4]} 29... Bxf7 {[%clk 0:01:12.9]} 30. h3 {[%clk 0:00:03.4]} 30... Qb3
{[%clk 0:01:12.5]} 31. Rd7 {[%clk 0:00:03.1]} 31... Qxb2 {[%clk 0:01:03.2]} 32.
Qc5 {[%clk 0:00:03.3]} 32... Qc1+ {[%clk 0:01:00.8]} 33. Kh2 {[%clk 0:00:03.6]}
33... Qf4+ {[%clk 0:00:59]} 34. Kg1 {[%clk 0:00:04.1]} 34... Qc1+ {[%clk
0:00:27.9]} 35. Kh2 {[%clk 0:00:03.9]} 35... Qb2 {[%clk 0:00:25.6]} 36. Qd5
{[%clk 0:00:03.4]} 36... Qxf2 {[%clk 0:00:25.7]} 37. Rxb7 {[%clk 0:00:02.1]}
37... Qf4+ {[%clk 0:00:26.3]} 38. Kh1 {[%clk 0:00:01.9]} 38... Qf6 {[%clk
0:00:25.2]} 0-1

[Event "*** SCC Grand Prix: Titled Tuesday Blitz"]
[Site "Chess.com"]
[Date "2020.09.29"]
[Round "2"]
[White "amiralfio"]
[Black "Pultis"]
[Result "0-1"]
[WhiteElo "2464"]
[BlackElo "2711"]
[TimeControl "180+1"]
[EndTime "10:17:11 PDT"]
[Termination "Pultis won by resignation"]

1. d4 {[%clk 0:03:00.9]} 1... Nf6 {[%clk 0:02:58.8]} 2. Bf4 {[%clk 0:03:01.4]}
2... e6 {[%clk 0:02:52.4]} 3. e3 {[%clk 0:03:01.4]} 3... d5 {[%clk 0:02:52.8]}
4. Nf3 {[%clk 0:03:00.7]} 4... c5 {[%clk 0:02:52.8]} 5. Nbd2 {[%clk 0:02:59.3]}
5... Bd6 {[%clk 0:02:53.3]} 6. Bg3 {[%clk 0:02:58.9]} 6... Qc7 {[%clk
0:02:53.8]} 7. c4 {[%clk 0:02:58.8]} 7... Bxg3 {[%clk 0:02:36.5]} 8. hxg3 {[%clk
0:02:56.6]} 8... cxd4 {[%clk 0:02:33.4]} 9. Nxd4 {[%clk 0:02:47.5]} 9... Nc6
{[%clk 0:02:32.9]} 10. Nb5 {[%clk 0:02:37.5]} 10... Qe7 {[%clk 0:02:30.7]} 11.
cxd5 {[%clk 0:02:30.5]} 11... exd5 {[%clk 0:02:31.6]} 12. Nb3 {[%clk 0:02:26]}
12... O-O {[%clk 0:02:24.5]} 13. Bd3 {[%clk 0:02:24.2]} 13... g6 {[%clk
0:02:09.6]} 14. Rc1 {[%clk 0:02:07.6]} 14... Ne5 {[%clk 0:01:51.7]} 15. a3
{[%clk 0:01:45.3]} 15... Ne4 {[%clk 0:01:38.6]} 16. O-O {[%clk 0:01:28.9]} 16...
Rd8 {[%clk 0:01:19.4]} 17. Rc7 {[%clk 0:01:18.5]} 17... Qf6 {[%clk 0:01:16.6]}
18. Bxe4 {[%clk 0:00:45.6]} 18... dxe4 {[%clk 0:01:14.7]} 19. N3d4 {[%clk
0:00:46.5]} 19... a6 {[%clk 0:00:25.5]} 20. Nc3 {[%clk 0:00:46.5]} 20... Qd6
{[%clk 0:00:25.5]} 21. Rxc8 {[%clk 0:00:40.7]} 21... Raxc8 {[%clk 0:00:26.4]}
22. Nxe4 {[%clk 0:00:41.2]} 22... Qb6 {[%clk 0:00:27]} 23. b4 {[%clk 0:00:32.5]}
23... Rd7 {[%clk 0:00:13.9]} 24. Nc5 {[%clk 0:00:19.3]} 24... Re7 {[%clk
0:00:11.8]} 25. Qa4 {[%clk 0:00:17]} 25... Rd8 {[%clk 0:00:10.9]} 26. Qb3 {[%clk
0:00:14.1]} 26... Qf6 {[%clk 0:00:10.4]} 27. Ne4 {[%clk 0:00:11]} 27... Qb6
{[%clk 0:00:08.2]} 28. Rc1 {[%clk 0:00:11]} 28... h5 {[%clk 0:00:07.7]} 29. Ng5
{[%clk 0:00:10.4]} 29... Kg7 {[%clk 0:00:06.9]} 30. Qc3 {[%clk 0:00:09.4]} 30...
Qf6 {[%clk 0:00:05.2]} 31. f4 {[%clk 0:00:09.2]} 31... Ng4 {[%clk 0:00:04.1]}
32. e4 {[%clk 0:00:08.1]} 32... Qxd4+ {[%clk 0:00:03]} 33. Qxd4+ {[%clk
0:00:08.1]} 33... Rxd4 {[%clk 0:00:03.9]} 0-1

[Event "*** SCC Grand Prix: Titled Tuesday Blitz"]
[Site "Chess.com"]
[Date "2020.09.29"]
[Round "2"]
[White "StockholmMissile"]
[Black "MisiekZielony"]
[Result "0-1"]
[WhiteElo "2410"]
[BlackElo "2240"]
[TimeControl "180+1"]
[EndTime "10:17:11 PDT"]
[Termination "MisiekZielony won by resignation"]

1. c4 {[%clk 0:02:50]} 1... c6 {[%clk 0:02:59.4]} 2. Nf3 {[%clk 0:02:49.9]} 2...
d5 {[%clk 0:02:59.4]} 3. e3 {[%clk 0:02:50.5]} 3... Nf6 {[%clk 0:02:59.2]} 4.
Nc3 {[%clk 0:02:51]} 4... g6 {[%clk 0:02:59.3]} 5. b3 {[%clk 0:02:49]} 5... Bg7
{[%clk 0:02:59.1]} 6. Bb2 {[%clk 0:02:49.1]} 6... O-O {[%clk 0:02:51.8]} 7. Rc1
{[%clk 0:02:46.6]} 7... Ne4 {[%clk 0:02:05.7]} 8. d3 {[%clk 0:02:40.7]} 8...
Nxc3 {[%clk 0:02:04]} 9. Bxc3 {[%clk 0:02:41.6]} 9... Bg4 {[%clk 0:01:52.9]} 10.
Bxg7 {[%clk 0:02:38.3]} 10... Kxg7 {[%clk 0:01:52]} 11. Qd2 {[%clk 0:02:38.8]}
11... Bxf3 {[%clk 0:01:51.2]} 12. gxf3 {[%clk 0:02:38.3]} 12... e5 {[%clk
0:01:14.6]} 13. cxd5 {[%clk 0:02:33.6]} 13... cxd5 {[%clk 0:01:14.2]} 14. Qb2
{[%clk 0:02:23.6]} 14... Qf6 {[%clk 0:00:57]} 15. Be2 {[%clk 0:02:15]} 15... Nc6
{[%clk 0:00:50.5]} 16. Rc5 {[%clk 0:02:13.1]} 16... Rad8 {[%clk 0:00:49.3]} 17.
b4 {[%clk 0:02:09.9]} 17... d4 {[%clk 0:00:41.2]} 18. b5 {[%clk 0:02:07.6]}
18... Ne7 {[%clk 0:00:40.9]} 19. f4 {[%clk 0:01:57.8]} 19... exf4 {[%clk
0:00:39.3]} 20. e4 {[%clk 0:01:47]} 20... Rc8 {[%clk 0:00:29.5]} 21. e5 {[%clk
0:01:42.9]} 21... Qb6 {[%clk 0:00:29.1]} 22. Rxc8 {[%clk 0:01:41.5]} 22... Rxc8
{[%clk 0:00:29]} 23. O-O {[%clk 0:01:39.9]} 23... Nd5 {[%clk 0:00:27.4]} 24. Bf3
{[%clk 0:01:36.7]} 24... Nc3 {[%clk 0:00:26.9]} 25. Qd2 {[%clk 0:01:28.5]} 25...
g5 {[%clk 0:00:25.5]} 26. h4 {[%clk 0:01:27.9]} 26... h6 {[%clk 0:00:25.4]} 27.
a4 {[%clk 0:01:26.9]} 27... Rc5 {[%clk 0:00:24.6]} 28. Re1 {[%clk 0:01:15.7]}
28... Qe6 {[%clk 0:00:20.4]} 29. hxg5 {[%clk 0:01:06.2]} 29... hxg5 {[%clk
0:00:20]} 30. Bxb7 {[%clk 0:01:06.4]} 30... Rxe5 {[%clk 0:00:14.4]} 31. Rxe5
{[%clk 0:01:06.4]} 31... Qxe5 {[%clk 0:00:14.3]} 32. Bf3 {[%clk 0:01:07]} 32...
f5 {[%clk 0:00:10.6]} 33. Qb2 {[%clk 0:00:46.3]} 33... g4 {[%clk 0:00:10]} 34.
Bc6 {[%clk 0:00:46.4]} 34... Qe1+ {[%clk 0:00:08]} 35. Kh2 {[%clk 0:00:44.7]}
35... f3 {[%clk 0:00:08]} 36. Kg3 {[%clk 0:00:34.7]} 36... Qe5+ {[%clk
0:00:07.6]} 37. Kh4 {[%clk 0:00:32.6]} 37... Kf6 {[%clk 0:00:07.8]} 0-1

[Event "*** SCC Grand Prix: Titled Tuesday Blitz"]
[Site "Chess.com"]
[Date "2020.09.29"]
[Round "2"]
[White "Maghalashvili"]
[Black "Mikhail_Golubev"]
[Result "1-0"]
[WhiteElo "2699"]
[BlackElo "2456"]
[TimeControl "180+1"]
[EndTime "10:17:13 PDT"]
[Termination "Maghalashvili won by resignation"]

1. Nf3 {[%clk 0:02:59.1]} 1... d6 {[%clk 0:02:59.1]} 2. d4 {[%clk 0:02:58.9]}
2... Nf6 {[%clk 0:02:58.5]} 3. c4 {[%clk 0:02:58.9]} 3... g6 {[%clk 0:02:57.6]}
4. g3 {[%clk 0:02:59.3]} 4... Bg7 {[%clk 0:02:57.9]} 5. Bg2 {[%clk 0:03:00]}
5... O-O {[%clk 0:02:58.2]} 6. O-O {[%clk 0:03:00.9]} 6... c6 {[%clk 0:02:57.9]}
7. Nc3 {[%clk 0:03:01.1]} 7... Bf5 {[%clk 0:02:58.2]} 8. b3 {[%clk 0:02:58.2]}
8... Ne4 {[%clk 0:02:55.5]} 9. Bb2 {[%clk 0:02:58.2]} 9... Nxc3 {[%clk
0:02:48.7]} 10. Bxc3 {[%clk 0:02:59.1]} 10... Be4 {[%clk 0:02:48]} 11. Re1
{[%clk 0:02:59.1]} 11... Nd7 {[%clk 0:02:47.1]} 12. Bh3 {[%clk 0:02:59.1]} 12...
c5 {[%clk 0:02:36.8]} 13. Ng5 {[%clk 0:02:53.3]} 13... Bc6 {[%clk 0:02:23.4]}
14. e4 {[%clk 0:02:53]} 14... cxd4 {[%clk 0:02:07.8]} 15. Bxd4 {[%clk
0:02:52.8]} 15... Ne5 {[%clk 0:02:04.7]} 16. Bg2 {[%clk 0:02:38.1]} 16... h6
{[%clk 0:02:00.5]} 17. Nh3 {[%clk 0:02:33.5]} 17... Nd7 {[%clk 0:01:59.8]} 18.
Bxg7 {[%clk 0:02:31.2]} 18... Kxg7 {[%clk 0:01:59.9]} 19. Nf4 {[%clk 0:02:31.3]}
19... Ne5 {[%clk 0:01:55]} 20. Nd5 {[%clk 0:02:28.1]} 20... e6 {[%clk
0:01:46.8]} 21. Ne3 {[%clk 0:02:16.9]} 21... Qe7 {[%clk 0:01:43.7]} 22. Qd4
{[%clk 0:02:15]} 22... Kh7 {[%clk 0:01:35.3]} 23. Rad1 {[%clk 0:02:13.2]} 23...
Rfd8 {[%clk 0:01:25.3]} 24. f4 {[%clk 0:02:12.4]} 24... Nd7 {[%clk 0:01:25.4]}
25. Qxd6 {[%clk 0:02:12]} 25... Qxd6 {[%clk 0:01:26.3]} 26. Rxd6 {[%clk
0:02:11.7]} 26... Nc5 {[%clk 0:01:23.7]} 27. e5 {[%clk 0:02:02.1]} 27... Rxd6
{[%clk 0:01:21]} 28. exd6 {[%clk 0:02:01.7]} 28... Bxg2 {[%clk 0:01:19.1]} 29.
Kxg2 {[%clk 0:02:00.4]} 29... Rd8 {[%clk 0:01:17.9]} 30. b4 {[%clk 0:01:52]}
30... Nd3 {[%clk 0:01:16.2]} 31. Rb1 {[%clk 0:01:32.8]} 31... Rxd6 {[%clk
0:01:14.3]} 32. Rd1 {[%clk 0:01:30.1]} 32... g5 {[%clk 0:00:27.9]} 33. fxg5
{[%clk 0:01:06.6]} 33... hxg5 {[%clk 0:00:27.4]} 34. Kf1 {[%clk 0:01:05.4]}
34... Rd7 {[%clk 0:00:27.1]} 35. Ng4 {[%clk 0:00:55.5]} 35... Rd4 {[%clk
0:00:13.4]} 36. Nf2 {[%clk 0:00:47.8]} 36... Rxc4 {[%clk 0:00:12.3]} 37. Nxd3
{[%clk 0:00:46.6]} 37... Rc2 {[%clk 0:00:12.5]} 38. a4 {[%clk 0:00:44.1]} 38...
Rxh2 {[%clk 0:00:11.9]} 39. Nf2 {[%clk 0:00:44.5]} 39... Kg6 {[%clk 0:00:09.8]}
40. Rd7 {[%clk 0:00:44.1]} 40... f5 {[%clk 0:00:09.3]} 41. Rxb7 {[%clk
0:00:43.8]} 41... f4 {[%clk 0:00:09.6]} 42. gxf4 {[%clk 0:00:42.7]} 42... gxf4
{[%clk 0:00:08.9]} 43. Rxa7 {[%clk 0:00:42.8]} 43... e5 {[%clk 0:00:09]} 44. b5
{[%clk 0:00:42.5]} 44... Kf5 {[%clk 0:00:06.3]} 45. Re7 {[%clk 0:00:41.8]} 45...
Kf6 {[%clk 0:00:05.9]} 46. Re8 {[%clk 0:00:41.6]} 46... Rh3 {[%clk 0:00:04.3]}
1-0

[Event "*** SCC Grand Prix: Titled Tuesday Blitz"]
[Site "Chess.com"]
[Date "2020.09.29"]
[Round "2"]
[White "gmpeter008"]
[Black "Nachsueb"]
[Result "1-0"]
[WhiteElo "2370"]
[BlackElo "1978"]
[TimeControl "180+1"]
[EndTime "10:17:13 PDT"]
[Termination "gmpeter008 won by resignation"]

1. d4 {[%clk 0:03:00.9]} 1... Nf6 {[%clk 0:02:58.9]} 2. Bf4 {[%clk 0:03:00.7]}
2... d5 {[%clk 0:02:58.5]} 3. Nf3 {[%clk 0:03:00.6]} 3... c5 {[%clk 0:02:58.6]}
4. e3 {[%clk 0:03:00.1]} 4... Nc6 {[%clk 0:02:58.4]} 5. Nbd2 {[%clk 0:02:59.9]}
5... Qb6 {[%clk 0:02:54.3]} 6. dxc5 {[%clk 0:02:59.4]} 6... Qxb2 {[%clk
0:02:51.4]} 7. c4 {[%clk 0:02:57.8]} 7... Qb4 {[%clk 0:02:34.7]} 8. Rb1 {[%clk
0:02:48.2]} 8... Qxc5 {[%clk 0:02:33.4]} 9. Rb5 {[%clk 0:02:48.1]} 9... Qa3
{[%clk 0:02:30.8]} 10. cxd5 {[%clk 0:02:47.3]} 10... Nb4 {[%clk 0:02:17.9]} 11.
Nb1 {[%clk 0:02:26.9]} 11... Qb2 {[%clk 0:02:08.6]} 12. Nd4 {[%clk 0:02:13.9]}
12... Bd7 {[%clk 0:01:59.5]} 13. Rxb7 {[%clk 0:02:09.7]} 13... Nc2+ {[%clk
0:01:55.9]} 14. Qxc2 {[%clk 0:02:02.2]} 14... Qxb7 {[%clk 0:01:56.5]} 15. e4
{[%clk 0:01:56.1]} 15... e5 {[%clk 0:01:45.8]} 16. dxe6 {[%clk 0:01:53.8]} 16...
fxe6 {[%clk 0:01:42.3]} 17. Bc4 {[%clk 0:01:35.6]} 17... Bb4+ {[%clk 0:01:38]}
18. Nd2 {[%clk 0:01:26]} 18... Bxd2+ {[%clk 0:01:30.8]} 19. Bxd2 {[%clk
0:01:23.1]} 19... Qxe4+ {[%clk 0:01:30.6]} 20. Qxe4 {[%clk 0:01:22.8]} 20...
Nxe4 {[%clk 0:01:31.5]} 21. Be3 {[%clk 0:01:03]} 21... O-O {[%clk 0:01:04.9]}
22. Nxe6 {[%clk 0:00:57]} 22... Bxe6 {[%clk 0:01:04.6]} 23. Bxe6+ {[%clk
0:00:56.5]} 23... Kh8 {[%clk 0:01:04.9]} 24. O-O {[%clk 0:00:55.2]} 24... a5
{[%clk 0:00:58.7]} 25. Bd5 {[%clk 0:00:52]} 25... Rae8 {[%clk 0:00:58.3]} 26. g3
{[%clk 0:00:44.3]} 26... Nc3 {[%clk 0:00:57.7]} 27. Bc4 {[%clk 0:00:37.2]} 27...
Rc8 {[%clk 0:00:56.2]} 28. Be6 {[%clk 0:00:35.9]} 28... Rc6 {[%clk 0:00:54.2]}
29. Bg4 {[%clk 0:00:29.6]} 29... Nxa2 {[%clk 0:00:50.9]} 30. Ra1 {[%clk
0:00:29.4]} 30... Rc2 {[%clk 0:00:44.8]} 31. Be6 {[%clk 0:00:29.6]} 31... Nc3
{[%clk 0:00:35.5]} 32. Rxa5 {[%clk 0:00:29.3]} 32... Nd1 {[%clk 0:00:34.5]} 33.
Bc5 {[%clk 0:00:24.3]} 33... Rc8 {[%clk 0:00:19.7]} 34. Bxc8 {[%clk 0:00:23.9]}
34... Rc1 {[%clk 0:00:17.8]} 35. Kg2 {[%clk 0:00:23.4]} 35... h5 {[%clk
0:00:18.2]} 36. Bf5 {[%clk 0:00:23]} 36... g6 {[%clk 0:00:17.4]} 37. Bd4+ {[%clk
0:00:22.9]} 37... Kg8 {[%clk 0:00:17.2]} 38. Be6+ {[%clk 0:00:21.8]} 38... Kf8
{[%clk 0:00:17.2]} 39. Bf6 {[%clk 0:00:22.1]} 1-0